[Event "IX Iberoamericano Championship 2023"]
[Site "Panama City"]
[Date "2023.11.30"]
[Round "6.13"]
[White "Delgado Rosas, Alex Antonio"]
[Black "Solares Orozco, Kebert"]
[Result "1/2-1/2"]
[ECO "B13"]
[WhiteElo "2105"]
[BlackElo "2312"]
[Annotator "RC"]
[PlyCount "139"]
[EventDate "2023.11.27"]
[EventType "swiss"]
[EventCountry "PAN"]
[SourceTitle "playchess.com"]
[Source "ChessBase"]
[SourceQuality "1"]
[TimeControl "5400+30"]

1. d4 {[%emt 0:00:04]} d5 {[%emt 0:00:14]} 2. Nf3 {[%emt 0:00:49]} Nf6 {[%emt 0:00:19]} 3. Bf4 {[%emt 0:00:10]} c5 {[%emt 0:06:19]} 4. e3 {[%emt 0:00:11]} Nc6 {[%emt 0:00:11]} 5. Nbd2 {[%emt 0:00:09]} cxd4 {[%emt 0:02:05]} 6. exd4 {[%emt 0:00:10]} g6 {[%emt 0:00:47]} 7. h3 {[%emt 0:06:42]} Bg7 {[%emt 0:00:21]} 8. c3 {[%emt 0:00:11]} O-O {[%emt 0:08:54]} 9. Bd3 {[%emt 0:02:31]} Nh5 {[%emt 0:04:32]} 10. Bh2 {[%emt 0:01:21]} Bh6 {[%emt 0:00:54]} 11. O-O {[%emt 0:11:08]} Nf4 {[%emt 0:00:12]} 12. Nb3 {[%emt 0:01:14]} a5 {[%emt 0:13:53]} 13. Nc1 {[%emt 0:00:08]} Qb6 {[%emt 0:08:58]} 14. Qb3 {[%emt 0:04:08]} Qxb3 {[%emt 0:00:08]} 15. axb3 {[%emt 0:00:04]} Nxd3 {[%emt 0:05:32]} 16. Nxd3 {[%emt 0:00:02]} b6 {[%emt 0:02:13]} 17. Bc7 {[%emt 0:06:52]} Ba6 {[%emt 0:00:56]} 18. Rfd1 {[%emt 0:01:05]} Rfc8 {[%emt 0:00:50]} 19. Bxb6 {[%emt 0:18:33]} Bxd3 {[%emt 0:04:09]} 20. Rxd3 {[%emt 0:00:03]} Rcb8 {[%emt 0:00:08]} 21. Bc5 {[%emt 0:01:22]} Rb7 {[%emt 0:39:25]} 22. Ba3 Rxb3 {[%emt 0:00:00]} 23. Ne1 {[%emt 0:01:30]} e6 {[%emt 0:00:00]} 24. Rd2 {[%emt 0:44:03]} a4 25. Rdd1 {[%emt 0:00:00]} Na5 {[%emt 0:00:00]} 26. Nd3 {[%emt 0:00:00]} Nc4 {[%emt 0:00:00]} 27. Nc5 {[%emt 0:00:00]} Rb5 {[%emt 0:00:00]} 28. Nd3 {[%emt 0:00:00]} Rb3 {[%emt 0:00:00]} 29. Nc5 {[%emt 0:00:00]} Rbb8 {[%emt 0:00:00]} 30. Nd3 {[%emt 0:00:00]} Bf8 {[%emt 0:00:00]} 31. Bxf8 {[%emt 0:00:00]} Kxf8 {[%emt 0:00:00]} 32. Ra2 {[%emt 0:00:00]} Rb3 {[%emt 0:00:00]} 33. Rda1 {[%emt 0:00:00]} Kg7 {[%emt 0:00:00]} 34. Rxa4 {[%emt 0:00:00]} Rxa4 {[%emt 0:00:00]} 35. Rxa4 {[%emt 0:00:00]} Nxb2 {[%emt 0:00:00]} 36. Nxb2 {[%emt 0:00:00]} Rxb2 {[%emt 0:00:00]} 37. Ra7 {[%emt 0:00:00]} Rc2 {[%emt 0:00:00]} 38. Rc7 {[%emt 0:00:00]} g5 {[%emt 0:00:00]} 39. g4 {[%emt 0:00:00]} Kg6 {[%emt 0:00:00]} 40. Kg2 {[%emt 0:00:00]} Rd2 {[%emt 0:00:00]} 41. Kg1 {[%emt 0:00:00]} Rd3 {[%emt 0:00:00]} 42. Kg2 {[%emt 0:00:00]} h6 {[%emt 0:00:00]} 43. Kh2 {[%emt 0:00:00]} f5 {[%emt 0:04:28]} 44. Re7 {[%emt 0:00:00]} Kf6 {[%emt 0:00:01]} 45. Rc7 {[%emt 0:00:00]} Rd1 {[%emt 0:01:23]} 46. Rh7 {[%emt 0:00:00]} Kg6 {[%emt 0:00:01]} 47. Re7 {[%emt 0:00:00]} Re1 {[%emt 0:00:01]} 48. Re8 {[%emt 0:00:00]} Kf7 {[%emt 0:03:34]} 49. Rh8 {[%emt 0:00:00]} Kg7 {[%emt 0:00:01]} 50. Re8 {[%emt 0:00:00]} f4 {[%emt 0:00:09]} 51. Re7+ {[%emt 0:00:00]} Kf6 {[%emt 0:00:11]} 52. Rh7 {[%emt 0:00:00]} Kg6 {[%emt 0:00:13]} 53. Rc7 {[%emt 0:01:50]} h5 {[%emt 0:00:59]} 54. gxh5+ {[%emt 0:01:55]} Kxh5 {[%emt 0:00:01]} 55. Rc6 {[%emt 0:00:54]} Kg6 {[%emt 0:04:02]} 56. c4 {[%emt 0:00:47]} dxc4 {[%emt 0:00:01]} 57. d5 {[%emt 0:00:25]} Kf6 {[%emt 0:00:59]} 58. Kg2 {[%emt 0:00:28]} c3 {[%emt 0:01:15]} 59. dxe6 {[%emt 0:01:05]} Rc1 {[%emt 0:00:02]} 60. Kf3 {[%emt 0:05:37]} c2 {[%emt 0:00:01]} 61. Ke2 {[%emt 0:01:13]} Rh1 {[%emt 0:00:47]} 62. Rxc2 {[%emt 0:00:07]} Rxh3 {[%emt 0:00:15]} 63. Rc6 {[%emt 0:00:14]} Ra3 {[%emt 0:00:36]} 64. e7+ {[%emt 0:00:51]} Kxe7 {[%emt 0:00:01]} 65. Rg6 {[%emt 0:00:01]} Ra5 {[%emt 0:00:25]} 66. Kf3 {[%emt 0:00:03]} Kf7 {[%emt 0:00:06]} 67. Rb6 {[%emt 0:00:11]} Ra1 {[%emt 0:01:55]} 68. Kg4 {[%emt 0:02:03]} Rg1+ {[%emt 0:00:02]} 69. Kf3 {[%emt 0:00:24]} Kg7 {[%emt 0:00:49]} 70. Ra6 {[%emt 0:00:09]} 1/2-1/2

[Event "IX Iberoamericano Championship 2023"]
[Site "Panama City"]
[Date "2023.11.30"]
[Round "6.14"]
[White "Ordaz Valdes, Lisandra Teresa"]
[Black "Schnell, Sebastian Narayana"]
[Result "1-0"]
[ECO "E73"]
[WhiteElo "2306"]
[BlackElo "1891"]
[Annotator "RC"]
[PlyCount "89"]
[EventDate "2023.11.27"]
[EventType "swiss"]
[EventCountry "PAN"]
[SourceTitle "playchess.com"]
[Source "ChessBase"]
[SourceQuality "1"]
[TimeControl "5400+30"]

1. d4 {[%emt 0:01:58]} Nf6 {[%emt 0:00:07]} 2. c4 {[%emt 0:00:10]} g6 {[%emt 0:00:07]} 3. Nc3 {[%emt 0:00:06]} Bg7 {[%emt 0:00:09]} 4. e4 {[%emt 0:00:05]} d6 {[%emt 0:00:07]} 5. Be2 {[%emt 0:00:05]} O-O {[%emt 0:00:08]} 6. Bg5 {[%emt 0:00:04]} Nc6 {[%emt 0:00:08]} 7. d5 {[%emt 0:05:34]} Ne5 {[%emt 0:00:07]} 8. Nf3 {[%emt 0:00:38]} Nxf3+ {[%emt 0:01:45]} 9. Bxf3 {[%emt 0:00:08]} h6 {[%emt 0:05:24]} 10. Be3 {[%emt 0:01:12]} e5 {[%emt 0:07:44]} 11. c5 {[%emt 0:01:57]} Ne8 {[%emt 0:01:48]} 12. Qc1 {[%emt 0:13:13]} Kh7 {[%emt 0:02:24]} 13. h4 {[%emt 0:00:32]} Bd7 {[%emt 0:17:19]} 14. h5 {[%emt 0:02:57]} g5 {[%emt 0:01:35]} 15. Qd1 {[%emt 0:07:07]} dxc5 {[%emt 0:05:53]} 16. Bxc5 {[%emt 0:00:08]} Nd6 {[%emt 0:02:37]} 17. Bxd6 {[%emt 0:14:31]} cxd6 {[%emt 0:00:25]} 18. g4 {[%emt 0:00:02]} Qb6 {[%emt 0:07:22]} 19. Qb3 {[%emt 0:00:48]} Qxb3 {[%emt 0:01:52]} 20. axb3 {[%emt 0:00:02]} Bf6 {[%emt 0:01:44]} 21. Be2 {[%emt 0:03:10]} Rfc8 {[%emt 0:05:46]} 22. b4 {[%emt 0:11:20]} Bd8 {[%emt 0:03:48]} 23. Kd2 {[%emt 0:01:06]} Bb6 {[%emt 0:03:03]} 24. f3 {[%emt 0:00:08]} Bd4 {[%emt 0:05:07]} 25. Ra3 {[%emt 0:02:53]} Rc7 {[%emt 0:02:12]} 26. Rha1 {[%emt 0:03:31]} Rac8 {[%emt 0:03:56]} 27. Bd3 {[%emt 0:00:38]} a6 {[%emt 0:06:56]} 28. R1a2 {[%emt 0:03:19]} Kg7 {[%emt 0:05:17]} 29. Rb3 {[%emt 0:07:21]} Kf8 {[%emt 0:02:37]} 30. Raa3 {[%emt 0:00:41]} Ke7 {[%emt 0:00:56]} 31. b5 {[%emt 0:01:27]} axb5 {[%emt 0:01:29]} 32. Bxb5 {[%emt 0:00:23]} Bxc3+ {[%emt 0:02:12]} 33. bxc3 {[%emt 0:00:10]} Bxb5 {[%emt 0:00:29]} 34. Rxb5 {[%emt 0:00:06]} Rb8 {[%emt 0:01:32]} 35. Rb6 {[%emt 0:05:43]} Rbc8 {[%emt 0:01:11]} 36. Rab3 {[%emt 0:02:08]} Rb8 {[%emt 0:00:11]} 37. Kd3 {[%emt 0:00:22]} Kd7 {[%emt 0:00:50]} 38. c4 {[%emt 0:02:15]} Ke7 {[%emt 0:02:06]} 39. R3b5 {[%emt 0:01:58]} Kd7 {[%emt 0:00:25]} 40. c5 {[%emt 0:02:41]} dxc5 {[%emt 0:00:43]} 41. Rxh6 {[%emt 0:03:34]} c4+ {[%emt 0:00:44]} 42. Kc2 {[%emt 0:01:34]} Ra8 {[%emt 0:00:26]} 43. d6 {[%emt 0:00:07]} Rc6 {[%emt 0:00:46]} 44. Rxb7+ {[%emt 0:00:44]} Kc8 {[%emt 0:00:03]} 45. Rxf7 {[%emt 0:00:41]} 1-0

[Event "IX Iberoamericano Championship 2023"]
[Site "Panama City"]
[Date "2023.11.30"]
[Round "6.15"]
[White "Zilleruelo Irizarry, Diego"]
[Black "Palma Villanueva, Miguel Ta"]
[Result "0-1"]
[ECO "C41"]
[WhiteElo "2105"]
[BlackElo "2286"]
[Annotator "RC"]
[PlyCount "92"]
[EventDate "2023.11.27"]
[EventType "swiss"]
[EventCountry "PAN"]
[SourceTitle "playchess.com"]
[Source "ChessBase"]
[SourceQuality "1"]
[TimeControl "5400+30"]

1. e4 {[%emt 0:00:24]} d6 {[%emt 0:04:08]} 2. d4 {[%emt 0:00:13]} Nf6 {[%emt 0:00:05]} 3. Nc3 {[%emt 0:00:08]} e5 {[%emt 0:00:02]} 4. Nf3 {[%emt 0:05:38]} Nbd7 {[%emt 0:00:11]} 5. Bc4 {[%emt 0:05:41]} Be7 {[%emt 0:00:05]} 6. O-O {[%emt 0:05:40]} O-O {[%emt 0:00:03]} 7. Re1 {[%emt 0:00:38]} c6 {[%emt 0:00:19]} 8. a4 {[%emt 0:05:48]} h6 {[%emt 0:00:38]} 9. a5 {[%emt 0:04:20]} Re8 {[%emt 0:00:42]} 10. h3 {[%emt 0:05:12]} Qc7 {[%emt 0:00:24]} 11. d5 {[%emt 0:12:30]} b5 {[%emt 0:00:04]} 12. Ba2 {[%emt 0:04:15]} b4 {[%emt 0:05:07]} 13. dxc6 {[%emt 0:02:08]} bxc3 {[%emt 0:00:19]} 14. cxd7 {[%emt 0:00:05]} Bxd7 {[%emt 0:00:19]} 15. bxc3 {[%emt 0:02:17]} Qxc3 {[%emt 0:10:29]} 16. Ba3 {[%emt 0:01:42]} Qc6 {[%emt 0:12:46]} 17. Bb4 {[%emt 0:02:12]} Rac8 {[%emt 0:12:41]} 18. c3 {[%emt 0:00:17]} Be6 {[%emt 0:02:36]} 19. Bxe6 {[%emt 0:13:39]} fxe6 {[%emt 0:00:02]} 20. Qd3 {[%emt 0:00:12]} Nd7 {[%emt 0:10:39]} 21. Rad1 {[%emt 0:01:39]} Nc5 {[%emt 0:00:06]} 22. Qc4 {[%emt 0:01:28]} Kf7 {[%emt 0:00:18]} 23. Qe2 {[%emt 0:02:27]} Na6 {[%emt 0:06:33]} 24. Rd3 {[%emt 0:17:52]} Kg8 {[%emt 0:06:49]} 25. Qe3 {[%emt 0:00:44]} Nxb4 {[%emt 0:04:28]} 26. cxb4 {[%emt 0:00:01]} Qb5 {[%emt 0:00:01]} 27. Rc3 {[%emt 0:01:25]} Qb7 {[%emt 0:04:23]} 28. Rxc8 {[%emt 0:02:52]} Rxc8 {[%emt 0:00:06]} 29. Qb3 {[%emt 0:00:02]} Kf7 {[%emt 0:00:44]} 30. b5 {[%emt 0:00:06]} Rc5 {[%emt 0:01:26]} 31. Rb1 {[%emt 0:00:25]} a6 {[%emt 0:04:40]} 32. bxa6 {[%emt 0:00:03]} Qxa6 {[%emt 0:01:25]} 33. Ra1 {[%emt 0:02:47]} Rxa5 {[%emt 0:02:23]} 34. Rxa5 {[%emt 0:00:02]} Qxa5 {[%emt 0:00:01]} 35. Qb7 {[%emt 0:00:41]} Kf6 {[%emt 0:01:37]} 36. g4 {[%emt 0:00:46]} Qc5 {[%emt 0:03:01]} 37. h4 {[%emt 0:01:27]} Qc1+ {[%emt 0:00:15]} 38. Kg2 {[%emt 0:00:01]} Qf4 {[%emt 0:00:08]} 39. Nh2 {[%emt 0:01:32]} h5 {[%emt 0:02:25]} 40. gxh5 {[%emt 0:00:02]} Qxh4 {[%emt 0:00:49]} 41. f3 {[%emt 0:00:18]} Qxh5 {[%emt 0:00:43]} 42. Qd7 {[%emt 0:00:31]} Kf7 {[%emt 0:01:40]} 43. Qc8 {[%emt 0:00:01]} d5 {[%emt 0:01:48]} 44. Ng4 {[%emt 0:01:14]} dxe4 {[%emt 0:00:24]} 45. Qc7 {[%emt 0:00:01]} exf3+ {[%emt 0:00:13]} 46. Kxf3 {[%emt 0:00:14]} Qh3+ {[%emt 0:00:21]} 0-1

[Event "IX Iberoamericano Championship 2023"]
[Site "Panama City"]
[Date "2023.11.30"]
[Round "6.16"]
[White "Robles Medina, Nelson Humberto"]
[Black "Hernandez Montes, Jhon Sebastian"]
[Result "0-1"]
[ECO "A17"]
[WhiteElo "1691"]
[BlackElo "2280"]
[Annotator "RC"]
[PlyCount "50"]
[EventDate "2023.11.27"]
[EventType "swiss"]
[EventCountry "PAN"]
[SourceTitle "playchess.com"]
[Source "ChessBase"]
[SourceQuality "1"]
[TimeControl "5400+30"]

1. c4 {[%emt 0:07:58]} Nf6 {[%emt 0:00:58]} 2. g3 {[%emt 0:00:14]} e6 {[%emt 0:02:54]} 3. Nc3 {[%emt 0:02:23]} d5 {[%emt 0:00:58]} 4. cxd5 {[%emt 0:01:35]} exd5 {[%emt 0:00:25]} 5. Bg2 {[%emt 0:01:10]} c6 {[%emt 0:02:00]} 6. Nf3 {[%emt 0:02:44]} d4 {[%emt 0:08:15]} 7. Nb1 {[%emt 0:00:46]} Be7 {[%emt 0:00:32]} 8. O-O {[%emt 0:00:26]} O-O {[%emt 0:00:10]} 9. d3 {[%emt 0:00:09]} h6 {[%emt 0:06:02]} 10. Nbd2 {[%emt 0:02:02]} Be6 {[%emt 0:06:30]} 11. Nb3 {[%emt 0:11:20]} c5 {[%emt 0:01:42]} 12. Bd2 {[%emt 0:18:27]} Nc6 {[%emt 0:03:09]} 13. Rb1 {[%emt 0:08:22]} Re8 {[%emt 0:03:19]} 14. Re1 {[%emt 0:01:30]} a5 {[%emt 0:04:49]} 15. Nc1 {[%emt 0:07:38]} a4 {[%emt 0:02:21]} 16. e3 {[%emt 0:07:05]} dxe3 {[%emt 0:03:32]} 17. Rxe3 {[%emt 0:07:53]} Nd5 {[%emt 0:07:21]} 18. Re1 {[%emt 0:02:54]} Bf6 {[%emt 0:00:45]} 19. a3 {[%emt 0:08:05]} b5 {[%emt 0:07:02]} 20. Qc2 {[%emt 0:02:57]} Qd6 {[%emt 0:08:38]} 21. Ne2 {[%emt 0:02:35]} Bf5 {[%emt 0:04:41]} 22. Nf4 {[%emt 0:01:03]} Nxf4 {[%emt 0:02:28]} 23. Bxf4 {[%emt 0:00:01]} Qd5 {[%emt 0:23:29]} 24. d4 Qxd4 {[%emt 0:00:00]} 25. Qxc5 {[%emt 0:01:23]} Qd3 {[%emt 0:00:00]} 0-1

[Event "IX Iberoamericano Championship 2023"]
[Site "Panama City"]
[Date "2023.11.30"]
[Round "6.17"]
[White "Cori, Jorge"]
[Black "Pastor Carvajal, Jeigoth"]
[Result "1-0"]
[ECO "E18"]
[WhiteElo "2626"]
[BlackElo "1985"]
[Annotator "TA"]
[PlyCount "79"]
[EventDate "2023.11.27"]
[EventType "swiss"]
[EventCountry "PAN"]
[SourceTitle "playchess.com"]
[Source "ChessBase"]
[SourceQuality "1"]
[TimeControl "5400+30"]

{[%evp 17,79,18,68,48,97,103,84,92,173,189,171,100,100,100,113,95,95,86,79,87,101,58,63,73,50,42,89,78,77,45,102,106,106,108,93,108,107,96,112,97,107,104,214,197,261,265,234,152,161,140,137,141,202,175,294,292,402,382,418,416,399,404,6598,5861]} 1. Nf3 {[%emt 0:05:15]} Nf6 {[%emt 0:00:25]} 2. c4 {[%emt 0:00:16]} b6 {[%emt 0:00:41]} 3. g3 {[%emt 0:00:08]} Bb7 {[%emt 0:00:05]} 4. Bg2 {[%emt 0:00:03]} e6 {[%emt 0:00:14]} 5. O-O {[%emt 0:00:05]} d5 {[%emt 0:00:24]} 6. cxd5 {[%emt 0:00:03]} exd5 {[%emt 0:01:26]} 7. d4 {[%emt 0:00:04]} Be7 {[%emt 0:02:39]} 8. Nc3 {[%emt 0:00:10]} O-O {[%emt 0:00:09]} 9. Bf4 {[%emt 0:00:45]} a6 {[%emt 0:00:30]} ({Black should play} 9... Nh5 $11) 10. Rc1 {[%emt 0:00:30] E18: Queen's Indian: Old Main Line (4 g3 Bb7 5 Bg2 Be7 6 0-0 0-0 7 Nc3).} c5 {[%emt 0:00:30]} (10... Nbd7 $14 {was preferrable.}) 11. dxc5 $16 {[%emt 0:00:30]} Bxc5 {[%emt 0:00:30] [#]} 12. Nh4 $146 {[%emt 0:10:10] White is better.} ({Predecessor:} 12. Be5 Nbd7 13. Bd4 Bxd4 14. Qxd4 Nc5 15. Rfd1 Qd6 16. Qf4 Qxf4 17. gxf4 Rfd8 18. e3 {1-0 Andersen,M (2193)-Kumpen,J (1711) Helsingor Xtracon op 2017 (1)}) 12... Ne4 {[%emt 0:17:40]} (12... a5 $16) 13. Nxe4 $18 {[%emt 0:00:36]} dxe4 {[%emt 0:00:05]} 14. Qxd8 {[%emt 0:00:04]} (14. b4 $18 Bxb4 15. Qb3) 14... Rxd8 $16 {[%emt 0:00:10]} 15. Rfd1 {[%emt 0:00:04]} Rd7 {[%emt 0:14:26]} 16. Nf5 {[%emt 0:04:32] Threatens to win with Rxd7.} a5 {[%emt 0:07:07]} 17. Be3 {[%emt 0:11:27] White has more active pieces. The black rooks are badly placed.} Rxd1+ {[%emt 0:08:23]} 18. Rxd1 {[%emt 0:00:04] White threatens Rd8+ and mate.} Na6 {[%emt 0:00:12]} 19. Bxc5 {[%emt 0:11:46]} Nxc5 {[%emt 0:00:17]} 20. Rd6 {[%emt 0:00:03]} g6 {[%emt 0:08:07]} 21. Ne3 {[%emt 0:10:58]} b5 {[%emt 0:15:14]} (21... Na4 $14) 22. Rb6 {[%emt 0:00:30]} Ba6 {[%emt 0:01:20]} 23. b3 {[%emt 0:34:02] Wards off Na4} (23. Rc6 $5 {[%cal Rc6c5]} Rc8 24. Bxe4 $16) 23... Rd8 {[%emt 0:08:37]} ({Black should try} 23... b4 $14) 24. Rc6 {[%emt 0:03:09]} Rc8 {[%emt 0:00:15] [#]} 25. Bxe4 {[%emt 0:00:06][%mdl 576] Deflection} Nxe4 {[%emt 0:03:50]} (25... Rxc6 26. Bxc6) 26. Rxa6 {[%emt 0:00:02][%mdl 4096] Endgame KRN-KRN} Nc3 {[%emt 0:02:53][%csl LRa2,LRe2]} 27. Rxa5 {[%emt 0:00:06]} Nxe2+ {[%emt 0:00:03]} 28. Kg2 {[%emt 0:00:05]} Nd4 {[%emt 0:03:32]} 29. Ra7 {[%emt 0:00:36]} Nc2 {[%emt 0:00:56] [#]} (29... h5 $16 {was necessary.}) 30. Ng4 $1 $18 {[%emt 0:02:02]} Ne1+ {[%emt 0:01:40]} (30... Rf8 {might work better.} 31. a4 Nd4) 31. Kf1 {[%emt 0:07:49]} Nf3 {[%emt 0:01:27]} 32. Ke2 {[%emt 0:00:00]} Nd4+ {[%emt 0:00:07]} 33. Kd3 {[%emt 0:00:00]} Nc6 {[%emt 0:00:43]} 34. Rb7 {[%emt 0:00:00]} h5 {[%emt 0:00:50]} (34... Rd8+ $16 35. Ke3 Re8+ 36. Kd2 Ra8) 35. Nh6+ {[%emt 0:00:00]} Kg7 {[%emt 0:00:03]} (35... Kf8 {is a better defense.} 36. Rxf7+ Ke8) 36. Nxf7 {[%emt 0:00:00] aiming for Nd6+.} ({Weaker is} 36. Rxf7+ Kxh6 37. Rf4 Rd8+ 38. Ke2 Nd4+ 39. Ke3 Nf5+ 40. Ke2 Kg7 $17) 36... Kf6 {[%emt 0:00:04]} 37. f4 {[%emt 0:00:00]} Nb4+ {[%emt 0:00:09]} 38. Ke4 {[%emt 0:00:00]} Nxa2 {[%emt 0:00:51]} 39. Ng5 {[%emt 0:00:00][%csl Gg5][%cal Rb7f7]} Nc3+ {[%emt 0:00:39]} (39... Re8+ $142 40. Kd4 Re7 41. Rxb5 Nc1 42. Ne4+ Kf7) 40. Kf3 {[%emt 0:00:00] Weighted Error Value: White=0.10 (very precise) /Black=0.30} 1-0

[Event "IX Iberoamericano Championship 2023"]
[Site "Panama City"]
[Date "2023.11.30"]
[Round "6.18"]
[White "Ticona Rocabado, Licael Roderick"]
[Black "Pilarte, Mario"]
[Result "1-0"]
[ECO "E97"]
[WhiteElo "2412"]
[BlackElo "1800"]
[Annotator "TA"]
[PlyCount "87"]
[EventDate "2023.11.27"]
[EventType "swiss"]
[EventCountry "PAN"]
[SourceTitle "playchess.com"]
[Source "ChessBase"]
[SourceQuality "1"]
[TimeControl "5400+30"]

{[%evp 22,87,39,26,46,39,37,35,50,47,56,58,134,136,137,128,157,166,171,172,171,172,173,141,162,140,152,158,151,154,194,189,223,189,193,193,221,245,239,206,297,297,544,372,378,378,378,357,477,441,409,402,694,534,686,667,853,877,868,779,12840,12840,29986,29987,29988,29988,29990,29991]} 1. d4 {[%emt 0:09:40]} Nf6 {[%emt 0:00:12]} 2. c4 {[%emt 0:00:09]} g6 {[%emt 0:00:09]} 3. Nc3 {[%emt 0:00:04]} Bg7 {[%emt 0:00:09]} 4. e4 {[%emt 0:00:30]} d6 {[%emt 0:00:15]} 5. Nf3 {[%emt 0:00:06]} O-O {[%emt 0:00:10]} 6. Be2 {[%emt 0:00:09]} e5 {[%emt 0:00:18]} 7. O-O {[%emt 0:00:07]} Nc6 {[%emt 0:00:17]} 8. d5 {[%emt 0:00:05]} Ne7 {[%emt 0:00:22]} 9. b4 {[%emt 0:00:06]} Nh5 {[%emt 0:01:05]} 10. c5 {[%emt 0:00:18]} Nf4 {[%emt 0:02:45]} 11. Bxf4 {[%emt 0:01:22] has lost popularity (11.a4).} exf4 {[%emt 0:00:07]} 12. Rc1 {[%emt 0:00:04]} Bg4 {[%emt 0:06:15] E97: King's Indian: Classical Main Line (6...e5 7 0-0 Nc6): 8 Be3 and 8 d5 Ne7, not 9 Ne1.} 13. Qd2 {[%emt 0:02:38]} Bxf3 {[%emt 0:00:39]} 14. Bxf3 {[%emt 0:00:01] [#]} Be5 $146 {[%emt 0:02:15] Black is weak on the light squares. White is slightly better.} ({Predecessor:} 14... g5 15. Bg4 Ng6 16. Rfd1 Ne5 17. Qe2 a6 18. Bf5 Qf6 19. Qh5 h6 20. Ne2 Ng6 {1-0 Gostisa,L (2460)-Bohak,J (2240) Bled op 14th 1993}) 15. Nb5 {[%emt 0:04:31][%cal Bc3b5,Bb5a3,Ba3c4][%mdl 32]} g5 {[%emt 0:07:45]} 16. Bg4 {[%emt 0:01:56]} h5 {[%emt 0:02:02]} 17. Bxh5 $16 {[%emt 0:00:31]} Kg7 {[%emt 0:00:46]} 18. Qe2 {[%emt 0:00:37] White is much more active.} a6 {[%emt 0:00:28] [#]} 19. Na3 {[%emt 0:01:12]} Rh8 {[%emt 0:01:09]} 20. Nc4 {[%emt 0:01:05]} Ng6 {[%emt 0:03:46]} 21. h3 {[%emt 0:00:43]} Qf6 {[%emt 0:01:41]} 22. Bxg6 {[%emt 0:00:32]} Kxg6 {[%emt 0:00:44]} 23. cxd6 {[%emt 0:03:28]} cxd6 {[%emt 0:01:12]} 24. Nxe5+ {[%emt 0:00:31]} Qxe5 {[%emt 0:00:31]} 25. Rc7 {[%emt 0:00:08]} Rh4 {[%emt 0:01:51][%cal Og5g4] [#]} 26. f3 {[%emt 0:01:21]} (26. Rxb7 g4 27. Re1 (27. hxg4 f3 28. g3 fxe2 29. gxh4 Qf4 30. h5+ Kg5) 27... gxh3 $15) 26... Qd4+ {[%emt 0:00:17]} 27. Kh2 {[%emt 0:00:08]} Qe5 {[%emt 0:02:11][%cal Og5g4]} 28. Qe1 {[%emt 0:01:33]} (28. Rxb7 g4 29. Kg1 (29. fxg4 f3+ {[%mdl 64] Discovered Attack} 30. Kg1 fxe2 31. Rbxf7 exf1=Q+ 32. Rxf1 Rxh3 33. Rf5 Qg3 34. Kf1 Rh1+ 35. Ke2 Re1+ {[%mdl 64] Skewer} 36. Kd2 Qe3+ 37. Kc2 Rc8+ 38. Kb2 Qc3#) 29... gxh3 $19) 28... Qb2 {[%emt 0:01:40][%cal Oh4h3] ...Rxh3+! would be deadly.} 29. Rf2 {[%emt 0:00:47][%cal Bf1f2,Bf2c2,Bc2c8][%mdl 32]} (29. Rxb7 $2 {perishes.} Rxh3+ 30. Kg1 Rh4 $19) 29... Qe5 {[%emt 0:01:40]} 30. Rfc2 {[%emt 0:00:15]} Rah8 {[%emt 0:03:40]} (30... Rhh8 $142 31. a4 Rab8) 31. Qc3 $18 {[%emt 0:00:12] Qxe5 is the strong threat.} ({But not} 31. Rxb7 $6 g4 $18) 31... Qe8 {[%emt 0:03:51]} (31... f6 {keeps fighting.} 32. Qxe5 dxe5) 32. Rc8 {[%emt 0:01:19]} Qxc8 {[%emt 0:02:48]} 33. Qxc8 {[%emt 0:00:02]} Rxc8 {[%emt 0:00:10]} 34. Rxc8 {[%emt 0:00:13][%mdl 4096] Endgame KR-KR} f5 {[%emt 0:00:30]} 35. Rg8+ {[%emt 0:00:14]} Kf6 {[%emt 0:00:25]} 36. Rf8+ {[%emt 0:00:06]} Ke5 {[%emt 0:00:32]} (36... Kg6 $142 37. Rd8 fxe4 38. fxe4 g4 39. Rg8+ Kf6 40. Rxg4 Rh6 41. Rxf4+ Ke5) 37. Rxf5+ {[%emt 0:00:10]} ({Weaker is} 37. exf5 Rh7 38. g4 fxg3+ 39. Kxg3 Rh4 $16) 37... Kd4 {[%emt 0:00:04]} 38. Rf6 {[%emt 0:00:11]} Kc4 {[%emt 0:00:39]} 39. Rxd6 {[%emt 0:00:06] Hoping for e5.} Kxb4 {[%emt 0:00:08]} 40. Rb6+ {[%emt 0:00:04]} Ka3 {[%emt 0:00:09]} 41. Rxb7 {[%emt 0:00:06] Intending d6 and mate.} Kxa2 {[%emt 0:00:08]} 42. d6 {[%emt 0:00:23][%cal Bd5d6,Bd6d7][%mdl 32] White mates.} Rh6 {[%emt 0:00:26]} 43. e5 {[%emt 0:00:06]} Re6 {[%emt 0:00:06]} 44. d7 {[%emt 0:00:05] Black did not feel at home in the position after the opening.   Weighted Error Value: White=0.18 (very precise) /Black=0.60} 1-0

[Event "IX Iberoamericano Championship 2023"]
[Site "Panama City"]
[Date "2023.12.01"]
[Round "7.1"]
[White "Henriquez Villagra, Cristobal"]
[Black "Espinosa Veloz, Ermes"]
[Result "1/2-1/2"]
[ECO "C55"]
[WhiteElo "2630"]
[BlackElo "2478"]
[Annotator "RC"]
[PlyCount "45"]
[EventDate "2023.11.27"]
[EventType "swiss"]
[EventCountry "PAN"]
[SourceTitle "playchess.com"]
[Source "ChessBase"]
[SourceQuality "1"]
[TimeControl "5400+30"]

1. e4 {[%emt 0:01:47]} e5 {[%emt 0:00:22]} 2. Nf3 {[%emt 0:00:07]} Nc6 {[%emt 0:00:05]} 3. Bc4 {[%emt 0:00:04]} Nf6 {[%emt 0:02:15]} 4. d3 {[%emt 0:00:06]} Be7 {[%emt 0:00:26]} 5. Nc3 {[%emt 0:01:22]} d6 {[%emt 0:01:46]} 6. a3 {[%emt 0:00:50]} O-O {[%emt 0:01:17]} 7. Bg5 {[%emt 0:05:34]} Kh8 {[%emt 0:10:20]} 8. Bxf6 {[%emt 0:03:28]} Bxf6 {[%emt 0:00:02]} 9. Nd5 {[%emt 0:00:09]} Be7 {[%emt 0:03:54]} 10. h4 {[%emt 0:05:00]} f5 {[%emt 0:21:20]} 11. Qd2 {[%emt 0:03:04]} f4 {[%emt 0:22:58]} 12. c3 {[%emt 0:17:39]} Bg4 {[%emt 0:01:05]} 13. Ng5 {[%emt 0:03:24]} Bxg5 {[%emt 0:01:38]} 14. hxg5 {[%emt 0:00:05]} Ne7 {[%emt 0:04:11]} 15. d4 {[%emt 0:27:23]} Nxd5 {[%emt 0:01:23]} 16. Bxd5 {[%emt 0:01:03]} c6 {[%emt 0:00:16]} 17. Ba2 {[%emt 0:03:24]} Qxg5 {[%emt 0:02:52]} 18. f3 {[%emt 0:25:01]} Bh5 {[%emt 0:23:20]} 19. g4 Bg6 20. O-O-O {[%emt 0:01:00]} Rad8 {[%emt 0:01:00]} 21. Be6 {[%emt 0:00:30]} h6 {[%emt 0:00:30]} 22. Rh3 {[%emt 0:00:30]} Rfe8 {[%emt 0:00:30]} 23. d5 {[%emt 0:00:30]} 1/2-1/2